bitfinex/quotes_BTCUSD_20251215
["timestamp","ask_amount","ask_price","bid_price","bid_amount"]
[1765801061218,0.0111556,89641.0,89638.0,0.01764]
[1765801061500,0.01115573,89640.0,89635.0,0.08896055]
[1765801061701,0.23428369,89635.0,89631.0,0.23429338]
[1765801061990,0.01115648,89634.0,89630.0,0.23429455]
[1765801062145,0.01115648,89634.0,89631.0,0.22313628]
[1765801062348,0.01115623,89636.0,89633.0,0.23428666]
[1765801062563,0.22312294,89637.0,89635.0,0.08896055]
[1765801062745,0.00024132,89638.0,89637.0,0.22312214]
[1765801063749,0.00024132,89638.0,89637.0,0.24076214]
[1765801064043,0.0113973,89638.0,89635.0,0.001]
[1765801064237,0.01115722,89628.0,89623.0,0.01115785]
[1765801064379,0.0111576,89625.0,89624.0,0.01764]
[1765801064735,0.01115735,89627.0,89624.0,0.00011506]
[1765801064935,0.22315202,89625.0,89624.0,0.00011506]
[1765801065717,0.22315103,89626.0,89624.0,0.00011506]
[1765801065920,0.02085121,89625.0,89624.0,0.00011506]
[1765801066305,0.24400323,89625.0,89624.0,0.00011506]
[1765801066511,0.22314976,89626.0,89624.0,0.00011506]
[1765801066715,0.02085121,89625.0,89624.0,0.00011506]
[1765801067124,0.24400323,89625.0,89624.0,0.00011506]
[1765801067331,0.22315202,89625.0,89624.0,0.00011506]
[1765801067588,0.23429763,89630.0,89625.0,0.0111576]
[1765801067878,0.0111566,89633.0,89630.0,0.01115697]
[1765801068088,0.23429375,89632.0,89629.0,0.0111571]
[1765801068294,0.22313718,89631.0,89629.0,0.23429893]
[1765801068494,0.01115672,89632.0,89629.0,0.0111571]
[1765801068792,0.23429368,89632.0,89629.0,0.0111571]
[1765801069450,0.01115672,89632.0,89629.0,0.23429912]
[1765801070421,0.0111566,89633.0,89630.0,0.23429489]
[1765801070631,0.0111566,89633.0,89631.0,0.22313662]
[1765801070835,0.23428932,89633.0,89630.0,0.23429489]
[1765801071899,0.01115672,89632.0,89629.0,0.23429443]
[1765801072308,0.01115685,89631.0,89628.0,0.01115722]
[1765801072546,0.23429617,89631.0,89629.0,0.22314164]
[1765801073313,0.01115585,89639.0,89632.0,0.01115672]
[1765801073515,0.22312299,89637.0,89635.0,0.01115635]
[1765801073775,0.0113973,89638.0,89636.0,0.22312463]
[1765801073978,0.0113973,89638.0,89635.0,0.23428321]
[1765801074137,0.00024132,89638.0,89636.0,0.22312347]
[1765801074316,0.23451936,89638.0,89635.0,0.23428321]
[1765801074518,0.22312283,89637.0,89635.0,0.23428321]
[1765801074717,0.23451936,89638.0,89634.0,0.23428576]
[1765801075094,0.01115623,89636.0,89634.0,0.2231294]
[1765801075270,0.22312481,89636.0,89634.0,0.23428588]
[1765801075727,0.22312481,89636.0,89634.0,0.01115648]
[1765801075900,0.22312511,89636.0,89634.0,0.01115648]
[1765801077052,0.22312797,89635.0,89633.0,0.0111566]
[1765801077273,0.23428432,89635.0,89632.0,0.2342864]
[1765801077408,0.01115635,89635.0,89633.0,0.22313124]
[1765801078003,0.22314169,89630.0,89627.0,0.23430425]
[1765801078135,0.23429416,89631.0,89627.0,0.23430315]
[1765801078336,0.22314252,89629.0,89626.0,0.01115747]
[1765801078544,0.22314252,89629.0,89626.0,0.23430619]
[1765801078745,0.22314226,89629.0,89626.0,0.01115747]
[1765801078944,0.22314239,89629.0,89626.0,0.01115747]
[1765801079162,0.23429604,89631.0,89627.0,0.1001179]
[1765801079351,0.23429604,89631.0,89628.0,0.22314385]
[1765801080085,0.01115685,89631.0,89629.0,0.22314167]
[1765801080287,0.23428362,89635.0,89629.0,0.0111571]
[1765801080486,0.00024132,89638.0,89635.0,0.01115635]
[1765801080891,0.00024132,89638.0,89637.0,0.22312214]
[1765801081627,0.00024132,89638.0,89636.0,0.2231228]
[1765801081837,0.00024132,89638.0,89637.0,0.22312214]
[1765801088249,0.00024132,89638.0,89637.0,0.31208269]
[1765801095279,0.00024132,89638.0,89637.0,0.36210108]
[1765801096949,0.00024132,89638.0,89637.0,0.37974108]
[1765801097149,0.00024132,89638.0,89637.0,0.38074108]
[1765801097625,0.00024132,89638.0,89637.0,0.32972269]
[1765801098020,0.00024132,89638.0,89637.0,0.33072269]
[1765801099337,0.00024132,89638.0,89637.0,0.32972269]
[1765801106098,0.00024132,89638.0,89637.0,0.33072269]
[1765801108059,0.00024132,89638.0,89637.0,0.32972269]
[1765801109238,0.00024132,89638.0,89637.0,0.33072269]
[1765801109674,0.00024132,89638.0,89637.0,0.32972269]
[1765801110221,0.00024132,89638.0,89637.0,0.33072269]
[1765801110546,0.00024132,89638.0,89637.0,0.32972269]
[1765801110768,0.00024132,89638.0,89637.0,0.01764]
[1765801110982,0.00024132,89638.0,89627.0,0.15013629]
[1765801110983,0.01115623,89636.0,89627.0,0.15013629]
[1765801111189,0.01115635,89635.0,89631.0,0.23429258]
[1765801111391,0.01115635,89635.0,89633.0,0.01764]
[1765801111807,0.0126576,89636.0,89633.0,0.0287966]
[1765801111808,0.23578226,89636.0,89633.0,0.0287966]
[1765801112017,0.00150137,89636.0,89634.0,0.22312813]
[1765801115931,0.22462645,89636.0,89633.0,0.23428721]
[1765801116142,0.00150137,89636.0,89633.0,0.23428721]
[1765801116769,0.00150137,89636.0,89634.0,0.22312928]
[1765801117384,0.22462738,89636.0,89633.0,0.23428781]
[1765801117765,0.00150137,89636.0,89633.0,0.23428781]
[1765801117923,0.00150137,89636.0,89634.0,0.22312961]
[1765801118494,0.00150137,89636.0,89635.0,0.22312712]
[1765801118840,0.00150137,89636.0,89634.0,0.22312934]
[1765801119063,0.22462647,89636.0,89633.0,0.23428781]
[1765801119244,0.00150137,89636.0,89634.0,0.22312914]
[1765801120241,0.22462613,89636.0,89633.0,0.23428781]
[1765801120437,0.22315202,89625.0,89621.0,0.01115809]
[1765801120627,0.22315202,89625.0,89620.0,0.01764]
[1765801120890,0.22315202,89625.0,89613.0,0.01115909]
[1765801120891,0.22315202,89625.0,89615.0,0.01115884]
[1765801121071,0.22315202,89625.0,89615.0,0.25197516]
[1765801121270,0.22315202,89625.0,89613.0,0.02879909]
[1765801121494,0.22315202,89625.0,89616.0,0.01115872]
[1765801121772,0.22315202,89625.0,89617.0,0.01115859]
[1765801121984,0.22315202,89625.0,89617.0,0.23433004]
[1765801122206,0.22315202,89625.0,89618.0,0.01115847]
[1765801122802,0.22315202,89625.0,89624.0,0.00211506]
[1765801123388,0.22315202,89625.0,89624.0,0.00011506]
[1765801125394,0.51385202,89625.0,89624.0,0.00011506]
[1765801128077,0.51485202,89625.0,89624.0,0.00011506]
[1765801130858,0.51385202,89625.0,89624.0,0.00011506]
[1765801131272,0.51485202,89625.0,89624.0,0.00011506]
[1765801131439,0.22415202,89625.0,89624.0,0.00011506]
[1765801131648,0.22315202,89625.0,89624.0,0.00011506]
[1765801131845,0.22415202,89625.0,89624.0,0.00011506]
[1765801163878,0.51485202,89625.0,89624.0,0.00011506]
[1765801174181,0.51385202,89625.0,89624.0,0.00011506]
[1765801174420,0.60314032,89625.0,89624.0,0.00011506]
[1765801174629,0.60414032,89625.0,89624.0,0.00011506]
[1765801175298,0.54837039,89625.0,89624.0,0.00011506]
[1765801175522,0.54737039,89625.0,89624.0,0.00011506]
[1765801175734,0.54937039,89625.0,89624.0,0.00011506]
[1765801175985,0.55137039,89625.0,89624.0,0.00011506]
[1765801176409,0.54937039,89625.0,89624.0,0.00011506]
[1765801176576,0.55137039,89625.0,89624.0,0.00011506]
[1765801186398,0.60714032,89625.0,89624.0,0.00011506]
[1765801188695,0.55137039,89625.0,89624.0,0.00011506]
[1765801189967,0.60714032,89625.0,89624.0,0.00011506]
[1765801190325,0.55137039,89625.0,89624.0,0.00011506]
[1765801191155,0.60714032,89625.0,89624.0,0.00011506]
[1765801191371,0.60214032,89625.0,89624.0,0.00011506]
[1765801194154,0.54637039,89625.0,89624.0,0.00011506]
[1765801201070,5.54637039,89625.0,89624.0,0.00011506]
[1765801202824,5.51285202,89625.0,89624.0,0.00011506]
[1765801202938,5.51085202,89625.0,89624.0,0.00011506]
[1765801203140,5.51285202,89625.0,89624.0,0.00011506]
[1765801203335,5.51085202,89625.0,89624.0,0.00011506]
[1765801203562,5.52001236,89625.0,89624.0,0.00011506]
[1765801204056,5.52201236,89625.0,89624.0,0.00011506]
[1765801205116,5.51085202,89625.0,89624.0,0.00011506]
[1765801205936,5.50885202,89625.0,89624.0,0.00011506]
[1765801206139,5.51085202,89625.0,89624.0,0.00011506]
[1765801207344,5.51285202,89625.0,89624.0,0.00011506]
[1765801208171,5.51085202,89625.0,89624.0,0.00011506]
[1765801208587,5.51285202,89625.0,89624.0,0.00011506]
[1765801208987,5.50885202,89625.0,89624.0,0.00011506]
[1765801209199,5.21815202,89625.0,89624.0,0.00011506]
[1765801209397,5.22015202,89625.0,89624.0,0.00011506]
[1765801209832,5.22215202,89625.0,89624.0,0.00011506]
[1765801210101,5.22015202,89625.0,89624.0,0.00011506]
[1765801210311,5.002,89625.0,89624.0,0.00011506]
[1765801210537,5.004,89625.0,89624.0,0.00011506]
[1765801211185,5.002,89625.0,89624.0,0.00011506]
[1765801211389,5.22515202,89625.0,89624.0,0.00011506]
[1765801212181,5.0,89625.0,89624.0,0.00011506]
[1765801212594,5.001,89625.0,89624.0,0.00011506]
[1765801212953,5.001,89625.0,89624.0,0.22326957]
[1765801213321,5.0,89625.0,89624.0,0.22326957]
[1765801213725,5.001,89625.0,89624.0,0.22326957]
[1765801214175,5.0,89625.0,89624.0,0.22326957]
[1765801215595,5.001,89625.0,89624.0,0.22326957]
[1765801219983,5.0,89625.0,89624.0,0.22326957]
[1765801220459,5.001,89625.0,89624.0,0.22326957]
[1765801220603,5.0,89625.0,89624.0,0.22326957]
[1765801222400,5.001,89625.0,89624.0,0.22326957]
[1765801222783,5.001,89625.0,89624.0,0.00011506]
[1765801223007,5.001,89625.0,89624.0,0.22326957]
[1765801223207,5.0,89625.0,89624.0,0.22326957]
[1765801223422,5.001,89625.0,89624.0,0.22326957]
[1765801223828,5.0,89625.0,89624.0,0.22326957]
[1765801224030,5.001,89625.0,89624.0,0.22326957]
[1765801228867,5.0,89625.0,89624.0,0.22326957]
[1765801229459,5.001,89625.0,89624.0,0.22326957]
[1765801229667,5.0,89625.0,89624.0,0.22326957]
[1765801230077,5.001,89625.0,89624.0,0.22326957]
[1765801233705,5.001,89625.0,89624.0,0.00011506]
[1765801233920,5.001,89625.0,89624.0,0.22326957]
[1765801234153,5.001,89625.0,89624.0,0.00011506]
[1765801234332,5.001,89625.0,89624.0,0.22326957]
[1765801239063,5.0,89625.0,89624.0,0.22326957]
[1765801239323,5.001,89625.0,89624.0,0.22326957]
[1765801239748,5.0,89625.0,89624.0,0.22426957]
[1765801239957,5.001,89625.0,89624.0,0.22426957]
[1765801240359,5.001,89625.0,89624.0,0.22326957]
[1765801240568,5.001,89625.0,89624.0,0.22426957]
[1765801242918,5.0,89625.0,89624.0,0.22426957]
[1765801243118,5.0,89625.0,89624.0,0.22326957]
[1765801243323,5.001,89625.0,89624.0,0.22326957]
[1765801243556,5.0,89625.0,89624.0,0.22426957]
[1765801244391,5.0,89625.0,89624.0,0.22626957]
[1765801285715,5.0,89625.0,89624.0,0.00311506]
[1765801286165,5.22315202,89625.0,89624.0,0.00311506]
[1765801286752,5.0,89625.0,89624.0,0.22426957]
[1765801286984,5.0,89625.0,89624.0,0.22326957]
[1765801287191,5.001,89625.0,89624.0,0.22326957]
[1765801288662,5.0,89625.0,89624.0,0.22326957]
[1765801289265,5.001,89625.0,89624.0,0.22326957]
[1765801289472,5.0,89625.0,89624.0,0.22326957]
[1765801289905,5.0,89625.0,89624.0,0.22426957]
[1765801290117,5.0,89625.0,89624.0,0.22526957]
[1765801290537,5.0,89625.0,89624.0,0.22626957]
[1765801291581,5.0,89625.0,89624.0,0.22426957]
[1765801291790,5.0,89625.0,89624.0,0.22626957]
[1765801293049,5.0,89625.0,89624.0,0.27628796]
[1765801293255,5.0,89625.0,89624.0,0.30979023]
[1765801322101,5.0,89625.0,89624.0,0.38970466]
[1765801322102,4.98186203,89625.0,89624.0,0.38970466]
[1765801323073,4.98186203,89625.0,89624.0,0.30979023]
[1765801324474,4.98186203,89625.0,89624.0,0.36546021]
[1765801325298,4.98186203,89625.0,89624.0,0.36446021]
[1765801325501,4.98186203,89625.0,89624.0,0.36246021]
[1765801325634,4.98186203,89625.0,89624.0,0.37346021]
[1765801326039,4.98186203,89625.0,89624.0,0.36846021]
[1765801326316,4.98186203,89625.0,89624.0,0.36246021]
[1765801326520,4.98186203,89625.0,89624.0,0.36746021]
[1765801326655,4.98186203,89625.0,89624.0,0.37346021]
[1765801327063,4.98186203,89625.0,89624.0,0.31779023]
[1765801327263,4.80581122,89625.0,89624.0,0.66416021]
[1765801329202,4.80581122,89625.0,89624.0,1.66416021]
[1765801332061,4.78767671,89625.0,89624.0,1.66416021]
[1765801333061,4.23119664,89625.0,89624.0,1.66416021]
[1765801333273,4.15998106,89625.0,89624.0,1.66416021]
[1765801333681,4.15793772,89625.0,89624.0,1.66416021]
[1765801334024,4.15529247,89625.0,89624.0,1.66416021]
[1765801334401,3.58649124,89625.0,89624.0,0.66416021]
[1765801334618,3.58649124,89625.0,89624.0,1.66416021]
[1765801336394,3.58649124,89625.0,89624.0,0.66416021]
[1765801336660,3.58649124,89625.0,89624.0,1.66416021]
[1765801337509,3.01642632,89625.0,89624.0,1.66416021]
[1765801340128,2.50021601,89625.0,89624.0,1.66416021]
[1765801340333,2.23082997,89625.0,89624.0,1.66416021]
[1765801340807,2.23082997,89625.0,89624.0,1.60849023]
[1765801341013,2.23082997,89625.0,89624.0,1.66416021]
[1765801342087,2.23082997,89625.0,89624.0,0.62609023]
[1765801342523,2.23082997,89625.0,89624.0,0.68176021]
[1765801342930,2.23082997,89625.0,89624.0,0.62609023]
[1765801343776,2.23082997,89625.0,89624.0,0.68176021]
[1765801344613,2.23082997,89625.0,89624.0,0.62609023]
[1765801344821,2.23082997,89625.0,89624.0,0.68176021]
[1765801345268,2.23082997,89625.0,89624.0,0.62609023]
[1765801345480,2.23082997,89625.0,89624.0,0.68176021]
[1765801346510,2.23082997,89625.0,89624.0,0.62609023]
[1765801347242,2.23082997,89625.0,89624.0,0.68176021]
[1765801347937,2.23082997,89625.0,89624.0,0.62609023]
[1765801348547,2.23082997,89625.0,89624.0,0.68176021]
[1765801349826,2.23082997,89625.0,89624.0,0.62609023]
[1765801350032,2.23082997,89625.0,89624.0,0.60849023]
[1765801350239,2.23082997,89625.0,89624.0,0.62609023]
[1765801350445,2.23082997,89625.0,89624.0,0.76189782]
[1765801350653,2.23082997,89625.0,89624.0,0.70622784]
[1765801351238,2.23082997,89625.0,89624.0,0.76189782]
[1765801351450,2.23082997,89625.0,89624.0,0.68176021]
[1765801351796,2.23082997,89625.0,89624.0,0.62609023]
[1765801351970,2.23082997,89625.0,89624.0,0.68176021]
[1765801352320,2.23082997,89625.0,89624.0,0.79696021]
[1765801352522,2.21269555,89625.0,89624.0,0.87713826]
[1765801352728,2.21269555,89625.0,89624.0,0.79696021]
[1765801353182,2.21269555,89625.0,89624.0,0.87713826]
[1765801354664,2.21269555,89625.0,89624.0,0.82146828]
[1765801354861,2.21269555,89625.0,89624.0,0.87713826]
[1765801355088,2.21269555,89625.0,89624.0,0.79696021]
[1765801355738,2.21269555,89625.0,89624.0,0.74129023]
[1765801356344,2.21269555,89625.0,89624.0,0.79696021]
[1765801362308,2.21269555,89625.0,89624.0,0.74129023]
[1765801362504,2.19456105,89625.0,89624.0,0.74129023]
[1765801362712,2.19456105,89625.0,89624.0,0.79696021]
[1765801364925,2.19456105,89625.0,89624.0,0.74129023]
[1765801365127,2.19456105,89625.0,89624.0,0.80394817]
[1765801365334,2.19456105,89625.0,89624.0,0.74129023]
[1765801365949,2.19456105,89625.0,89624.0,0.79696021]
[1765801368749,2.19456105,89625.0,89624.0,0.74129023]
[1765801368949,2.19456105,89625.0,89624.0,0.79696021]
[1765801372879,2.19456105,89625.0,89624.0,0.74129023]
[1765801373037,2.19456105,89625.0,89624.0,0.79696021]
[1765801376759,2.19456105,89625.0,89624.0,0.74129023]
[1765801377167,2.17642623,89625.0,89624.0,0.74129023]
[1765801377375,2.17642623,89625.0,89624.0,0.79696021]
[1765801377520,2.17642623,89625.0,89624.0,0.74129023]
[1765801378171,2.17642623,89625.0,89624.0,1.79696021]
[1765801380827,2.17642623,89625.0,89624.0,1.78596021]
[1765801381044,2.17642623,89625.0,89624.0,0.79296021]
[1765801381266,2.17642623,89625.0,89624.0,1.79996021]
[1765801381678,2.17642623,89625.0,89624.0,1.79296021]
[1765801382058,2.17642623,89625.0,89624.0,1.80096021]
[1765801383015,2.17642623,89625.0,89624.0,1.74529023]
[1765801383374,2.17642623,89625.0,89624.0,1.80096021]
[1765801386074,2.17642623,89625.0,89624.0,0.80096021]
[1765801386229,2.17642623,89625.0,89624.0,1.80096021]
[1765801387282,2.0257888,89625.0,89624.0,1.80096021]
[1765801388066,2.0257888,89625.0,89624.0,0.80096021]
[1765801388273,2.0257888,89625.0,89624.0,1.80096021]
[1765801393557,2.0257888,89625.0,89624.0,1.74529023]
[1765801393762,2.0257888,89625.0,89624.0,1.32929023]
[1765801394163,2.0257888,89625.0,89624.0,1.28496021]
[1765801394388,2.0257888,89625.0,89624.0,0.89909023]
[1765801394611,2.0257888,89625.0,89624.0,0.67767184]
[1765801394811,2.0257888,89625.0,89624.0,0.40457184]
[1765801395046,2.0257888,89625.0,89624.0,0.74529023]
[1765801395252,2.0257888,89625.0,89624.0,0.45459023]
[1765801395470,2.0257888,89625.0,89624.0,0.74529023]
[1765801395903,2.0257888,89625.0,89624.0,0.80096021]
[1765801396574,2.0257888,89625.0,89624.0,0.74529023]
[1765801396953,2.0257888,89625.0,89624.0,0.80096021]
[1765801398515,2.0257888,89625.0,89624.0,0.74529023]
[1765801399155,2.0257888,89625.0,89624.0,0.80096021]
[1765801400354,2.0257888,89625.0,89624.0,0.74529023]
[1765801400562,2.0257888,89625.0,89624.0,0.80096021]
[1765801401653,2.0257888,89625.0,89624.0,0.74529023]
[1765801401827,2.0257888,89625.0,89624.0,1.80096021]
[1765801404537,2.0257888,89625.0,89624.0,1.74529023]
[1765801404746,1.87514576,89625.0,89624.0,1.80096021]
[1765801406057,1.35875828,89625.0,89624.0,1.80096021]
[1765801406262,1.11762679,89625.0,89624.0,1.80096021]
[1765801406879,0.61068055,89625.0,89624.0,1.80096021]
[1765801418930,0.61068055,89625.0,89624.0,0.80096021]
[1765801419131,0.61068055,89625.0,89624.0,1.80096021]
[1765801420697,0.61068055,89625.0,89624.0,1.74529023]
[1765801421752,0.61068055,89625.0,89624.0,1.80096021]
[1765801424682,0.61068055,89625.0,89624.0,1.9011837]
[1765801427422,0.61068055,89625.0,89624.0,1.80096021]
[1765801433357,0.58529599,89625.0,89624.0,1.80096021]
[1765801435494,0.58529599,89625.0,89624.0,1.74529023]
[1765801435703,0.58529599,89625.0,89624.0,1.80096021]
[1765801436899,0.58529599,89625.0,89624.0,1.90128784]
[1765801443398,0.55991182,89625.0,89624.0,1.90128784]
[1765801444779,0.04883137,89625.0,89624.0,1.80096021]
[1765801445608,0.00024132,89638.0,89624.0,1.80096021]
[1765801445808,0.00024132,89638.0,89637.0,1.70847106]
[1765801446156,0.00024132,89638.0,89637.0,1.72607106]
[1765801446293,0.00024132,89638.0,89637.0,1.73053649]
[1765801446912,0.00024132,89638.0,89637.0,1.73353649]
[1765801449035,0.00024132,89638.0,89637.0,1.73753649]
[1765801449648,0.00024132,89638.0,89637.0,1.68186651]
[1765801449850,0.00024132,89638.0,89637.0,1.73753649]
[1765801450370,0.00024132,89638.0,89637.0,1.88040358]
[1765801455728,0.0004,89650.0,89649.0,1.61948065]
[1765801455941,0.0004,89650.0,89649.0,1.75228065]
[1765801456570,0.00076191,89650.0,89649.0,1.75674527]
[1765801457397,0.00076191,89650.0,89649.0,1.76374527]
[1765801458627,0.00076191,89650.0,89649.0,1.76674527]
[1765801459029,0.00076191,89650.0,89649.0,1.77574527]
[1765801459210,0.00076191,89650.0,89649.0,1.75674527]
[1765801459606,0.00076191,89650.0,89649.0,1.76574527]
[1765801460577,0.00076191,89650.0,89649.0,1.71007529]
[1765801460787,0.00076191,89650.0,89649.0,1.20617529]
[1765801460903,0.00076191,89650.0,89649.0,0.72007529]
[1765801461571,0.00076191,89650.0,89649.0,0.77574527]
[1765801461780,0.00076191,89650.0,89649.0,0.71107529]
[1765801461987,0.00076191,89650.0,89649.0,0.76674527]
[1765801462187,0.00076191,89650.0,89649.0,0.76374527]
[1765801462440,0.00076191,89650.0,89649.0,0.75674527]
[1765801462615,0.00076191,89650.0,89649.0,0.76474527]
[1765801462828,0.00076191,89650.0,89649.0,0.77174527]
[1765801463044,0.00076191,89650.0,89649.0,0.71607529]
[1765801463904,0.00076191,89650.0,89649.0,0.77174527]
[1765801464339,0.00076191,89650.0,89649.0,0.70807529]
[1765801464536,0.00076191,89650.0,89649.0,0.71607529]
[1765801464962,0.00076191,89650.0,89649.0,0.77174527]
[1765801465391,0.00076191,89650.0,89649.0,0.65654527]
[1765801465799,0.00076191,89650.0,89649.0,0.60087529]
[1765801465999,0.00076191,89650.0,89649.0,0.65654527]
[1765801467409,0.00076191,89650.0,89649.0,0.60087529]
[1765801468597,0.00076191,89650.0,89649.0,0.65654527]
[1765801470422,0.00076191,89650.0,89649.0,0.60087529]
[1765801470826,0.00076191,89650.0,89649.0,0.65654527]
[1765801471055,0.00076191,89650.0,89649.0,0.60087529]
[1765801471252,0.00076191,89650.0,89649.0,0.71607529]
[1765801472189,0.00076191,89650.0,89649.0,0.77174527]
[1765801476731,0.00076191,89650.0,89649.0,0.71607529]
[1765801477364,0.00076191,89650.0,89649.0,0.77174527]
[1765801477558,0.00076191,89650.0,89649.0,0.71607529]
[1765801479447,0.00076191,89650.0,89649.0,0.77174527]
[1765801479848,0.00076191,89650.0,89649.0,0.71607529]
[1765801480030,0.00076191,89650.0,89649.0,0.77174527]
[1765801482418,0.00076191,89650.0,89649.0,0.71607529]
[1765801483251,0.00076191,89650.0,89649.0,0.77174527]
[1765801485084,0.00076191,89650.0,89649.0,0.71607529]
[1765801486057,0.00076191,89650.0,89649.0,0.77174527]
[1765801489269,0.00076191,89650.0,89649.0,0.85192932]
[1765801489614,0.00076191,89650.0,89649.0,0.79625934]
[1765801490036,0.00076191,89650.0,89649.0,0.85192932]
[1765801490239,0.00076191,89650.0,89649.0,0.77174527]
[1765801490655,0.00076191,89650.0,89649.0,0.71607529]
[1765801490876,0.00076191,89650.0,89649.0,0.77174527]
[1765801491431,0.00076191,89650.0,89649.0,0.71607529]
[1765801492283,0.00076191,89650.0,89649.0,0.77174527]
[1765801500482,0.00076191,89650.0,89649.0,0.71607529]
[1765801500911,0.00076191,89650.0,89649.0,0.77174527]
[1765801501127,0.00076191,89650.0,89649.0,0.71607529]
[1765801501566,0.00076191,89650.0,89649.0,0.77174527]
[1765801501786,0.00076191,89650.0,89649.0,0.71607529]
[1765801501983,0.00076191,89650.0,89649.0,0.76374527]
[1765801502199,0.00076191,89650.0,89649.0,0.70807529]
[1765801502436,0.00076191,89650.0,89649.0,0.71607529]
[1765801502860,0.00076191,89650.0,89649.0,0.70107529]
[1765801503311,0.00076191,89650.0,89649.0,0.71607529]
[1765801503533,0.00076191,89650.0,89649.0,0.76474527]
[1765801503958,0.00076191,89650.0,89649.0,0.77174527]
[1765801504370,0.00076191,89650.0,89649.0,0.71607529]
[1765801505436,0.00076191,89650.0,89649.0,0.77174527]
[1765801505632,0.00076191,89650.0,89649.0,0.71607529]
[1765801505938,0.00076191,89650.0,89649.0,0.77174527]
[1765801509005,0.00076191,89650.0,89649.0,0.71607529]
[1765801509203,0.00076191,89650.0,89649.0,0.77174527]
[1765801509411,0.00076191,89650.0,89649.0,1.77174527]
[1765801510152,0.00076191,89650.0,89649.0,1.75674527]
[1765801510335,0.00076191,89650.0,89649.0,1.76674527]
[1765801510537,0.00076191,89650.0,89649.0,1.77774527]
[1765801510738,0.00076191,89650.0,89649.0,1.76774527]
[1765801510955,0.00076191,89650.0,89649.0,1.77574527]
[1765801512466,0.00076191,89650.0,89649.0,1.76474527]
[1765801512973,0.00076191,89650.0,89649.0,1.77374527]
[1765801514360,0.00076191,89650.0,89649.0,0.77374527]
[1765801514588,0.00076191,89650.0,89649.0,1.77374527]
[1765801523904,0.00076191,89650.0,89649.0,1.76574527]
[1765801524334,0.00076191,89650.0,89649.0,1.76474527]
[1765801525558,0.00076191,89650.0,89649.0,1.75674527]
[1765801525760,0.00076191,89650.0,89649.0,1.77374527]
[1765801525995,0.00076191,89650.0,89649.0,1.76574527]
[1765801526130,0.00076191,89650.0,89649.0,1.75674527]
[1765801526340,0.00076191,89650.0,89649.0,1.76474527]
[1765801526540,0.00076191,89650.0,89649.0,1.76574527]
[1765801526978,0.00076191,89650.0,89649.0,1.77374527]
[1765801527329,0.00076191,89650.0,89649.0,1.75674527]
[1765801527511,0.00076191,89650.0,89649.0,1.76474527]
[1765801528106,0.00076191,89650.0,89649.0,1.43971745]
[1765801528311,0.00076191,89650.0,89649.0,0.45731745]
[1765801528508,0.00076191,89650.0,89649.0,0.74801745]
[1765801528706,0.00076191,89650.0,89649.0,0.79803584]
[1765801528907,0.00076191,89650.0,89649.0,0.79003584]
[1765801529103,0.00076191,89650.0,89649.0,0.79703584]
[1765801529305,0.00076191,89650.0,89649.0,0.84570582]
[1765801529543,0.00076191,89650.0,89649.0,0.85370582]
[1765801529791,0.00076191,89650.0,89649.0,0.86070582]
[1765801529990,0.00076191,89650.0,89649.0,1.84570582]
[1765801530373,0.00076191,89650.0,89649.0,1.86070582]
[1765801530510,0.00076191,89650.0,89649.0,1.85370582]
[1765801530721,0.00076191,89650.0,89649.0,1.84570582]
[1765801530923,0.00076191,89650.0,89649.0,1.85370582]
[1765801532236,0.00076191,89650.0,89649.0,1.84570582]
[1765801532448,0.00076191,89650.0,89649.0,1.44893584]
[1765801532603,0.00076191,89650.0,89649.0,1.44193584]
[1765801532812,0.00076191,89650.0,89649.0,1.43393584]
[1765801533021,0.00076191,89650.0,89649.0,1.85370582]
[1765801533619,0.00076191,89650.0,89649.0,1.85270582]
[1765801533826,0.00076191,89650.0,89649.0,1.84570582]
[1765801534207,0.00076191,89650.0,89649.0,1.85370582]
[1765801534868,0.00076191,89650.0,89649.0,1.80368743]
[1765801535311,0.00076191,89650.0,89649.0,1.86070582]
[1765801535519,0.00076191,89650.0,89649.0,1.84570582]
[1765801535928,0.00076191,89650.0,89649.0,1.85670582]
[1765801536151,0.00076191,89650.0,89649.0,1.84570582]
[1765801536361,0.00076191,89650.0,89649.0,1.85370582]
[1765801536559,0.00076191,89650.0,89649.0,1.86170582]
[1765801536981,0.00076191,89650.0,89649.0,1.85370582]
[1765801537456,0.00076191,89650.0,89649.0,1.86270582]
[1765801538317,0.00076191,89650.0,89649.0,1.85470582]
[1765801538701,0.00076191,89650.0,89649.0,1.85370582]
[1765801538981,0.00076191,89650.0,89649.0,1.84570582]
[1765801539201,0.00076191,89650.0,89649.0,1.85470582]
[1765801539410,0.00076191,89650.0,89649.0,1.86170582]
[1765801539609,0.00076191,89650.0,89649.0,1.85270582]
[1765801539814,0.00076191,89650.0,89649.0,1.68300582]
[1765801540000,0.00076191,89650.0,89649.0,1.68400582]
[1765801540372,0.00076191,89650.0,89649.0,1.72390582]
[1765801540583,0.00076191,89650.0,89649.0,1.71590582]
[1765801541380,0.00076191,89650.0,89649.0,1.85370582]
[1765801541622,0.00076191,89650.0,89649.0,1.84570582]
[1765801541777,0.00076191,89650.0,89649.0,1.85270582]
[1765801542104,0.00076191,89650.0,89649.0,1.79803584]
[1765801542439,0.00076191,89650.0,89649.0,0.91881745]
[1765801542578,0.00076191,89650.0,89649.0,0.45731745]
[1765801542974,0.00076191,89650.0,89649.0,0.57200582]
[1765801543496,0.00076191,89650.0,89649.0,0.86270582]
[1765801543697,0.00076191,89650.0,89649.0,0.80703584]
[1765801544028,0.00076191,89650.0,89649.0,0.86270582]
[1765801544467,0.00076191,89650.0,89649.0,0.80703584]
[1765801545370,0.00076191,89650.0,89649.0,0.78943584]
[1765801545591,0.00076191,89650.0,89649.0,0.35111745]
[1765801546199,0.00076191,89650.0,89649.0,0.39313584]
[1765801546538,0.00076191,89650.0,89649.0,0.38413584]
[1765801546759,0.00076191,89650.0,89649.0,0.38913584]
[1765801546952,0.00076191,89650.0,89649.0,0.39513584]
[1765801547770,0.00076191,89650.0,89649.0,0.38913584]
[1765801548402,0.00076191,89650.0,89649.0,0.43980582]
[1765801548526,0.00076191,89650.0,89649.0,0.44580582]
[1765801548952,0.00076191,89650.0,89649.0,0.73650582]
[1765801549508,0.00076191,89650.0,89649.0,0.73750582]
[1765801549732,0.00076191,89650.0,89649.0,0.74550582]
[1765801549870,0.00076191,89650.0,89649.0,0.73850582]
[1765801550292,0.00076191,89650.0,89649.0,0.74650582]
[1765801551382,0.00076191,89650.0,89649.0,0.69083584]
[1765801552007,0.00076191,89650.0,89649.0,0.74650582]
[1765801552216,0.00076191,89650.0,89649.0,0.69083584]
[1765801552417,0.00076191,89650.0,89649.0,0.74650582]
[1765801552816,0.00076191,89650.0,89649.0,0.69083584]
[1765801553017,0.00076191,89650.0,89649.0,0.74650582]
[1765801554094,0.00076191,89650.0,89649.0,0.69083584]
[1765801554330,0.00076191,89650.0,89649.0,0.74650582]
[1765801554680,0.00076191,89650.0,89649.0,0.67323584]
[1765801554960,0.00076191,89650.0,89649.0,0.69083584]